[Event "*** Titled Tuesday Blitz"]
[Site "Chess.com"]
[Date "2020.04.07"]
[Round "4"]
[White "bazar-wokzal"]
[Black "Eltarolo"]
[Result "1-0"]
[WhiteElo "2546"]
[BlackElo "2328"]
[TimeControl "180+1"]
[EndTime "13:39:12 PDT"]
[Termination "bazar-wokzal won by resignation"]

1. e4 {[%clk 0:03:00.9]} 1... c5 {[%clk 0:03:00]} 2. c3 {[%clk 0:03:00.5]} 2...
Nf6 {[%clk 0:02:59.3]} 3. e5 {[%clk 0:03:00.7]} 3... Nd5 {[%clk 0:02:59.6]} 4.
d4 {[%clk 0:03:01.2]} 4... cxd4 {[%clk 0:03:00.2]} 5. cxd4 {[%clk 0:03:01.4]}
5... e6 {[%clk 0:02:59.4]} 6. Nc3 {[%clk 0:03:00.5]} 6... Nc6 {[%clk 0:02:56.7]}
7. f4 {[%clk 0:02:59.1]} 7... d6 {[%clk 0:02:33.4]} 8. Nf3 {[%clk 0:02:57.8]}
8... Be7 {[%clk 0:02:23.1]} 9. Bd3 {[%clk 0:02:56.9]} 9... O-O {[%clk
0:02:20.8]} 10. h4 {[%clk 0:02:55.7]} 10... a6 {[%clk 0:01:55]} 11. Bxh7+ {[%clk
0:02:50.7]} 11... Kxh7 {[%clk 0:01:34.5]} 12. Ng5+ {[%clk 0:02:49.9]} 12... Kg6
{[%clk 0:01:07.1]} 13. f5+ {[%clk 0:02:48.8]} 13... exf5 {[%clk 0:01:03.7]} 14.
h5+ {[%clk 0:02:47.7]} 14... Kh6 {[%clk 0:00:59.3]} 15. Nxf7+ {[%clk 0:02:47.2]}
15... Kh7 {[%clk 0:00:58.3]} 16. Nxd8 {[%clk 0:02:47]} 16... Nxc3 {[%clk
0:00:55.7]} 17. bxc3 {[%clk 0:02:46.2]} 17... Bxd8 {[%clk 0:00:53.2]} 18. exd6
{[%clk 0:02:44.4]} 18... Re8+ {[%clk 0:00:51.1]} 19. Kf2 {[%clk 0:02:42.1]}
19... Be6 {[%clk 0:00:39]} 20. d5 {[%clk 0:02:38.3]} 20... Ne5 {[%clk 0:00:39]}
21. dxe6 {[%clk 0:02:36.2]} 21... Bb6+ {[%clk 0:00:34.1]} 22. Kg3 {[%clk
0:02:30.1]} 22... Rxe6 {[%clk 0:00:30.5]} 23. Bf4 {[%clk 0:02:26.4]} 23... Ng4
{[%clk 0:00:24.6]} 24. Qd5 {[%clk 0:02:18.6]} 24... Bf2+ {[%clk 0:00:14]} 25.
Kf3 {[%clk 0:02:12.9]} 25... Rf6 {[%clk 0:00:10.7]} 26. d7 {[%clk 0:02:07.6]}
26... Rd8 {[%clk 0:00:08.9]} 27. Rad1 {[%clk 0:01:56.8]} 27... Kh8 {[%clk
0:00:06.9]} 28. Bg5 {[%clk 0:01:54.2]} 28... Rc6 {[%clk 0:00:05]} 29. Bxd8
{[%clk 0:01:51]} 29... Rxc3+ {[%clk 0:00:05.1]} 30. Rd3 {[%clk 0:01:50.6]} 30...
Rxd3+ {[%clk 0:00:05.7]} 31. Qxd3 {[%clk 0:01:50]} 31... Ne5+ {[%clk 0:00:06.5]}
32. Ke2 {[%clk 0:01:47.3]} 32... Nxd3 {[%clk 0:00:07.4]} 33. Bc7 {[%clk
0:01:40.5]} 1-0

[Event "*** Titled Tuesday Blitz"]
[Site "Chess.com"]
[Date "2020.04.07"]
[Round "4"]
[White "omidnoroozi21"]
[Black "PetrolulSah"]
[Result "1-0"]
[WhiteElo "2565"]
[BlackElo "2232"]
[TimeControl "180+1"]
[EndTime "13:39:12 PDT"]
[Termination "omidnoroozi21 won on time"]

1. e4 {[%clk 0:03:00.9]} 1... e5 {[%clk 0:02:45]} 2. Nf3 {[%clk 0:02:59.9]} 2...
Nc6 {[%clk 0:02:44.9]} 3. g3 {[%clk 0:02:59.2]} 3... Nf6 {[%clk 0:02:43]} 4. d3
{[%clk 0:02:59.1]} 4... g6 {[%clk 0:02:42.2]} 5. Bg2 {[%clk 0:02:59.1]} 5... Bg7
{[%clk 0:02:42.5]} 6. O-O {[%clk 0:03:00]} 6... O-O {[%clk 0:02:42.5]} 7. c3
{[%clk 0:03:00.4]} 7... d5 {[%clk 0:02:42.1]} 8. exd5 {[%clk 0:02:59.1]} 8...
Nxd5 {[%clk 0:02:42.9]} 9. Re1 {[%clk 0:02:58.6]} 9... Re8 {[%clk 0:02:41.9]}
10. Nbd2 {[%clk 0:02:57.9]} 10... Bf5 {[%clk 0:02:40]} 11. Ne4 {[%clk
0:02:57.6]} 11... h6 {[%clk 0:02:36.7]} 12. Qc2 {[%clk 0:02:57.2]} 12... a5
{[%clk 0:02:33.9]} 13. Bd2 {[%clk 0:02:57.2]} 13... a4 {[%clk 0:02:25.2]} 14.
Rad1 {[%clk 0:02:57]} 14... a3 {[%clk 0:02:21]} 15. b4 {[%clk 0:02:55.7]} 15...
Nb6 {[%clk 0:02:11.6]} 16. Nc5 {[%clk 0:02:46.8]} 16... Qc8 {[%clk 0:01:55.2]}
17. Qb3 {[%clk 0:02:43.7]} 17... Nd7 {[%clk 0:01:45.3]} 18. Ne4 {[%clk
0:02:28.4]} 18... Be6 {[%clk 0:01:44.9]} 19. Qb1 {[%clk 0:02:28.4]} 19... f5
{[%clk 0:01:41.4]} 20. Nc5 {[%clk 0:02:28.5]} 20... Nxc5 {[%clk 0:01:40.7]} 21.
bxc5 {[%clk 0:02:29.4]} 21... Bd5 {[%clk 0:01:29]} 22. Bc1 {[%clk 0:02:13.2]}
22... Bf7 {[%clk 0:01:25.7]} 23. Nd2 {[%clk 0:02:09.2]} 23... Qe6 {[%clk
0:01:22.4]} 24. Nb3 {[%clk 0:02:08.2]} 24... e4 {[%clk 0:01:20.8]} 25. d4 {[%clk
0:02:07.7]} 25... Ne7 {[%clk 0:01:16]} 26. Bd2 {[%clk 0:02:03.6]} 26... Nd5
{[%clk 0:01:07.9]} 27. c4 {[%clk 0:02:03.9]} 27... Ne7 {[%clk 0:01:05.3]} 28. d5
{[%clk 0:02:04]} 28... Qe5 {[%clk 0:01:04.5]} 29. Bf4 {[%clk 0:02:02.9]} 29...
Qb2 {[%clk 0:00:58.2]} 30. Bxc7 {[%clk 0:02:03.1]} 30... Rac8 {[%clk 0:00:48]}
31. d6 {[%clk 0:02:02.4]} 31... Bxc4 {[%clk 0:00:43.2]} 32. d7 {[%clk 0:02:01]}
32... Bxb3 {[%clk 0:00:37.4]} 33. axb3 {[%clk 0:02:00.7]} 33... Qxb1 {[%clk
0:00:35.2]} 34. Rxb1 {[%clk 0:02:01.6]} 34... a2 {[%clk 0:00:35.1]} 35. dxe8=Q+
{[%clk 0:02:01.2]} 35... Rxe8 {[%clk 0:00:34.5]} 36. Ra1 {[%clk 0:02:01.5]}
36... Bxa1 {[%clk 0:00:31.8]} 37. Rxa1 {[%clk 0:02:02.4]} 37... Nd5 {[%clk
0:00:31.5]} 38. Bd6 {[%clk 0:01:57.2]} 38... Nc3 {[%clk 0:00:30.1]} 39. Bf1
{[%clk 0:01:58.1]} 39... Ra8 {[%clk 0:00:26.2]} 40. Be5 {[%clk 0:01:58.2]} 1-0

[Event "*** Titled Tuesday Blitz"]
[Site "Chess.com"]
[Date "2020.04.07"]
[Round "4"]
[White "mishanick"]
[Black "Gentlejimmy7"]
[Result "1-0"]
[WhiteElo "3008"]
[BlackElo "2605"]
[TimeControl "180+1"]
[EndTime "13:39:17 PDT"]
[Termination "mishanick won by resignation"]

1. d4 {[%clk 0:01:49.3]} 1... Nf6 {[%clk 0:02:00.7]} 2. c4 {[%clk 0:01:46.6]}
2... g6 {[%clk 0:02:01]} 3. Nc3 {[%clk 0:01:46.2]} 3... d5 {[%clk 0:02:00.9]} 4.
cxd5 {[%clk 0:01:46.1]} 4... Nxd5 {[%clk 0:02:01.8]} 5. e4 {[%clk 0:01:46.8]}
5... Nxc3 {[%clk 0:02:02.1]} 6. bxc3 {[%clk 0:01:47.7]} 6... b6 {[%clk
0:02:02.7]} 7. Bb5+ {[%clk 0:01:41.9]} 7... c6 {[%clk 0:02:02.3]} 8. Bc4 {[%clk
0:01:39.4]} 8... Bg7 {[%clk 0:02:02.4]} 9. h4 {[%clk 0:01:37.5]} 9... h6 {[%clk
0:01:59.2]} 10. Nf3 {[%clk 0:01:35.3]} 10... Bg4 {[%clk 0:01:54.4]} 11. Bf4
{[%clk 0:01:33.4]} 11... O-O {[%clk 0:01:51.3]} 12. Qd2 {[%clk 0:01:33.2]} 12...
b5 {[%clk 0:01:30.8]} 13. Bb3 {[%clk 0:01:32.3]} 13... Bxf3 {[%clk 0:01:27.4]}
14. gxf3 {[%clk 0:01:31.8]} 14... h5 {[%clk 0:01:26.9]} 15. Rg1 {[%clk
0:01:30.9]} 15... Kh7 {[%clk 0:01:25.5]} 16. e5 {[%clk 0:01:09.1]} 16... e6
{[%clk 0:01:25.1]} 17. Bg5 {[%clk 0:01:08.7]} 17... Qa5 {[%clk 0:01:24.2]} 18.
f4 {[%clk 0:01:08.3]} 18... Nd7 {[%clk 0:01:23.5]} 19. Be7 {[%clk 0:00:58.1]}
19... Rfe8 {[%clk 0:01:23]} 20. Bb4 {[%clk 0:00:58.2]} 20... Qb6 {[%clk
0:01:22.6]} 21. f5 {[%clk 0:00:58.4]} 21... c5 {[%clk 0:01:14.6]} 22. fxg6+
{[%clk 0:00:57]} 22... fxg6 {[%clk 0:01:14.2]} 23. Qg5 {[%clk 0:00:57.5]} 23...
Nf8 {[%clk 0:00:51.9]} 24. Bxc5 {[%clk 0:00:56.3]} 24... Qc7 {[%clk 0:00:52.4]}
25. Bxf8 {[%clk 0:00:48.3]} 25... Qxc3+ {[%clk 0:00:52.2]} 26. Ke2 {[%clk
0:00:48.4]} 26... Qb2+ {[%clk 0:00:46.8]} 27. Kd3 {[%clk 0:00:48.4]} 1-0

[Event "*** Titled Tuesday Blitz"]
[Site "Chess.com"]
[Date "2020.04.07"]
[Round "4"]
[White "Parhamov"]
[Black "Caclox"]
[Result "1-0"]
[WhiteElo "3079"]
[BlackElo "2489"]
[TimeControl "180+1"]
[EndTime "13:39:19 PDT"]
[Termination "Parhamov won on time"]

1. e4 {[%clk 0:03:00.9]} 1... c5 {[%clk 0:02:59.8]} 2. Nf3 {[%clk 0:03:00.5]}
2... d6 {[%clk 0:03:00.2]} 3. d4 {[%clk 0:02:58.2]} 3... cxd4 {[%clk 0:03:01.1]}
4. Nxd4 {[%clk 0:02:59.1]} 4... Nf6 {[%clk 0:03:01.4]} 5. Nc3 {[%clk 0:02:56.6]}
5... a6 {[%clk 0:03:01.7]} 6. h3 {[%clk 0:02:53]} 6... e5 {[%clk 0:03:01.4]} 7.
Nde2 {[%clk 0:02:52]} 7... h5 {[%clk 0:03:01.8]} 8. Nd5 {[%clk 0:02:51.4]} 8...
Nxd5 {[%clk 0:02:58.4]} 9. Qxd5 {[%clk 0:02:50.2]} 9... Nd7 {[%clk 0:02:55.6]}
10. Nc3 {[%clk 0:02:49.5]} 10... Nf6 {[%clk 0:02:51.8]} 11. Qd1 {[%clk
0:02:48.1]} 11... Be6 {[%clk 0:02:52.2]} 12. Bg5 {[%clk 0:02:46]} 12... Be7
{[%clk 0:02:52.5]} 13. Qf3 {[%clk 0:02:43.2]} 13... Rc8 {[%clk 0:02:44.9]} 14.
Bd3 {[%clk 0:02:37.9]} 14... Nd7 {[%clk 0:02:33.7]} 15. Be3 {[%clk 0:02:36.2]}
15... Nf6 {[%clk 0:02:26.7]} 16. Rd1 {[%clk 0:02:30.8]} 16... b5 {[%clk
0:02:21.4]} 17. a3 {[%clk 0:02:29.4]} 17... Rxc3 {[%clk 0:01:57.2]} 18. bxc3
{[%clk 0:02:28.8]} 18... Qc7 {[%clk 0:01:49.3]} 19. O-O {[%clk 0:02:29]} 19...
Qxc3 {[%clk 0:01:46]} 20. Ra1 {[%clk 0:02:28.2]} 20... Bc4 {[%clk 0:01:28.7]}
21. a4 {[%clk 0:02:25.9]} 21... O-O {[%clk 0:01:21.6]} 22. axb5 {[%clk
0:02:23.1]} 22... axb5 {[%clk 0:01:20.5]} 23. Ra7 {[%clk 0:02:22.9]} 23... Bd8
{[%clk 0:01:16.3]} 24. Rd1 {[%clk 0:02:20.6]} 24... d5 {[%clk 0:00:48.9]} 25.
Bxc4 {[%clk 0:02:19]} 25... bxc4 {[%clk 0:00:44.2]} 26. exd5 {[%clk 0:02:17.2]}
26... Qxc2 {[%clk 0:00:43.8]} 27. Rc1 {[%clk 0:02:13.5]} 27... Qd3 {[%clk
0:00:40.5]} 28. Bc5 {[%clk 0:02:11.8]} 28... Re8 {[%clk 0:00:37.5]} 29. d6
{[%clk 0:02:11.9]} 29... e4 {[%clk 0:00:25.8]} 30. Qd1 {[%clk 0:02:11.9]} 30...
Re5 {[%clk 0:00:15.5]} 31. Be3 {[%clk 0:02:11.9]} 31... Rd5 {[%clk 0:00:14.6]}
32. Qa4 {[%clk 0:02:09.9]} 32... Rxd6 {[%clk 0:00:10.4]} 33. Qxc4 {[%clk
0:02:10]} 33... Qxc4 {[%clk 0:00:08.6]} 34. Rxc4 {[%clk 0:02:10.9]} 34... Kh7
{[%clk 0:00:02.3]} 35. Rxf7 {[%clk 0:02:09.6]} 35... Kg6 {[%clk 0:00:02.6]} 36.
Rb7 {[%clk 0:02:08]} 36... Ba5 {[%clk 0:00:02]} 37. Kh2 {[%clk 0:02:07.9]} 37...
Bd2 {[%clk 0:00:01.6]} 38. Rcc7 {[%clk 0:02:05.2]} 1-0

[Event "*** Titled Tuesday Blitz"]
[Site "Chess.com"]
[Date "2020.04.07"]
[Round "4"]
[White "Tayson_7"]
[Black "riconaipe"]
[Result "1-0"]
[WhiteElo "2724"]
[BlackElo "2524"]
[TimeControl "180+1"]
[EndTime "13:39:21 PDT"]
[Termination "Tayson_7 won by resignation"]

1. d4 {[%clk 0:03:00.9]} 1... d5 {[%clk 0:02:58.4]} 2. Nf3 {[%clk 0:03:01.1]}
2... Nf6 {[%clk 0:02:58]} 3. Bg5 {[%clk 0:03:01.6]} 3... e6 {[%clk 0:02:57.6]}
4. Nbd2 {[%clk 0:03:00.6]} 4... c5 {[%clk 0:02:57.2]} 5. e3 {[%clk 0:02:59.2]}
5... Nc6 {[%clk 0:02:54.9]} 6. c3 {[%clk 0:02:59.4]} 6... Be7 {[%clk 0:02:49.7]}
7. Bd3 {[%clk 0:02:54.8]} 7... b6 {[%clk 0:02:48.5]} 8. Ne5 {[%clk 0:02:50.3]}
8... Nxe5 {[%clk 0:02:47.4]} 9. dxe5 {[%clk 0:02:51.2]} 9... Nd7 {[%clk
0:02:44]} 10. Bxe7 {[%clk 0:02:51.4]} 10... Qxe7 {[%clk 0:02:44.9]} 11. f4
{[%clk 0:02:52]} 11... O-O {[%clk 0:02:40.8]} 12. O-O {[%clk 0:02:49.4]} 12...
f6 {[%clk 0:02:41.2]} 13. exf6 {[%clk 0:02:48.8]} 13... Rxf6 {[%clk 0:02:39.5]}
14. e4 {[%clk 0:02:49.1]} 14... Bb7 {[%clk 0:02:35.1]} 15. e5 {[%clk 0:02:48]}
15... Rh6 {[%clk 0:02:35.5]} 16. Qg4 {[%clk 0:02:38.6]} 16... d4 {[%clk
0:02:18.7]} 17. c4 {[%clk 0:02:36.6]} 17... Qh4 {[%clk 0:02:04]} 18. Qxh4 {[%clk
0:02:33.6]} 18... Rxh4 {[%clk 0:02:03.8]} 19. g3 {[%clk 0:02:33.8]} 19... Rh6
{[%clk 0:02:01.2]} 20. Ne4 {[%clk 0:02:33.7]} 20... Bxe4 {[%clk 0:02:00.7]} 21.
Bxe4 {[%clk 0:02:33.5]} 21... Rd8 {[%clk 0:01:55.8]} 22. a3 {[%clk 0:02:33]}
22... Kf7 {[%clk 0:01:52.6]} 23. b4 {[%clk 0:02:30.7]} 23... Ke7 {[%clk
0:01:52.2]} 24. h4 {[%clk 0:02:27.4]} 24... Rh5 {[%clk 0:01:37.8]} 25. b5 {[%clk
0:02:26.1]} 25... g6 {[%clk 0:01:32.8]} 26. a4 {[%clk 0:02:21.5]} 26... Nxe5
{[%clk 0:01:31.2]} 27. fxe5 {[%clk 0:02:21.2]} 27... Rxe5 {[%clk 0:01:32.1]} 28.
Rf4 {[%clk 0:02:05.4]} 28... d3 {[%clk 0:01:25.9]} 29. Kf2 {[%clk 0:02:05]}
29... Rd4 {[%clk 0:01:21.2]} 30. Bf3 {[%clk 0:02:04.2]} 30... Rd6 {[%clk
0:01:10.6]} 31. Rd1 {[%clk 0:02:01.1]} 31... Rf5 {[%clk 0:01:09.4]} 32. Rxf5
{[%clk 0:01:59.7]} 32... gxf5 {[%clk 0:01:08.2]} 33. Ke3 {[%clk 0:01:56.8]}
33... Rd4 {[%clk 0:01:08.2]} 34. Rxd3 {[%clk 0:01:56.3]} 34... Rxc4 {[%clk
0:01:08.3]} 35. Bc6 {[%clk 0:01:56.9]} 35... Rxa4 {[%clk 0:01:06.8]} 36. Rd7+
{[%clk 0:01:56.7]} 36... Kf6 {[%clk 0:01:07.3]} 37. Rxh7 {[%clk 0:01:57.2]}
37... Ke5 {[%clk 0:01:07.7]} 38. h5 {[%clk 0:01:57]} 38... Ra3+ {[%clk 0:01:08]}
39. Kf2 {[%clk 0:01:56.8]} 39... Ra2+ {[%clk 0:01:04.6]} 40. Kf3 {[%clk
0:01:55.6]} 40... Ra3+ {[%clk 0:01:03.9]} 41. Kg2 {[%clk 0:01:55.4]} 41... Ra2+
{[%clk 0:01:03.4]} 42. Kh3 {[%clk 0:01:55.5]} 42... c4 {[%clk 0:01:03.8]} 43. h6
{[%clk 0:01:48.1]} 43... Ra3 {[%clk 0:00:50.8]} 44. Rf7 {[%clk 0:01:43.5]} 44...
Rd3 {[%clk 0:00:46]} 45. Rf8 {[%clk 0:01:41]} 45... f4 {[%clk 0:00:43.4]} 46. h7
{[%clk 0:01:38.1]} 46... Rxg3+ {[%clk 0:00:42.9]} 47. Kh4 {[%clk 0:01:38.6]}
47... c3 {[%clk 0:00:36.7]} 48. h8=Q+ {[%clk 0:01:38.6]} 48... Kd6 {[%clk
0:00:37.3]} 49. Qd4+ {[%clk 0:01:38.2]} 1-0

[Event "*** Titled Tuesday Blitz"]
[Site "Chess.com"]
[Date "2020.04.07"]
[Round "4"]
[White "Dinamo81"]
[Black "LilRag"]
[Result "1-0"]
[WhiteElo "2602"]
[BlackElo "2367"]
[TimeControl "180+1"]
[EndTime "13:39:23 PDT"]
[Termination "Dinamo81 won by resignation"]

1. d4 {[%clk 0:03:00.9]} 1... Nf6 {[%clk 0:02:59.4]} 2. Bf4 {[%clk 0:02:58.7]}
2... e6 {[%clk 0:02:58.3]} 3. e3 {[%clk 0:02:55.9]} 3... c5 {[%clk 0:02:58.4]}
4. Nf3 {[%clk 0:02:45]} 4... Nc6 {[%clk 0:02:55.7]} 5. Nbd2 {[%clk 0:02:42.7]}
5... d5 {[%clk 0:02:54.9]} 6. c3 {[%clk 0:02:40.9]} 6... Bd6 {[%clk 0:02:54.9]}
7. Bg3 {[%clk 0:02:40.3]} 7... O-O {[%clk 0:02:55.2]} 8. Bd3 {[%clk 0:02:38.3]}
8... Re8 {[%clk 0:02:55.5]} 9. Ne5 {[%clk 0:02:34.7]} 9... Bxe5 {[%clk
0:02:48.7]} 10. dxe5 {[%clk 0:02:32.2]} 10... Nd7 {[%clk 0:02:49.2]} 11. f4
{[%clk 0:02:27.7]} 11... Rb8 {[%clk 0:02:44.2]} 12. Qh5 {[%clk 0:02:17]} 12...
Nf8 {[%clk 0:02:36.7]} 13. Nf3 {[%clk 0:01:58.8]} 13... c4 {[%clk 0:02:30.3]}
14. Bc2 {[%clk 0:01:56.1]} 14... Qb6 {[%clk 0:02:28.1]} 15. Kd2 {[%clk
0:01:55.4]} 15... Qxb2 {[%clk 0:02:21.2]} 16. Rhb1 {[%clk 0:01:49.6]} 16... Qa3
{[%clk 0:02:21]} 17. Ng5 {[%clk 0:01:46.7]} 17... g6 {[%clk 0:02:13.3]} 18. Qh6
{[%clk 0:01:46.4]} 18... b5 {[%clk 0:01:59.8]} 19. Bh4 {[%clk 0:01:45.4]} 19...
b4 {[%clk 0:01:54.2]} 20. Ne4 {[%clk 0:01:34.6]} 20... g5 {[%clk 0:00:19.2]} 21.
Nf6+ {[%clk 0:01:17.2]} 21... Kh8 {[%clk 0:00:19]} 22. Bxh7 {[%clk 0:01:15]}
22... Qxc3+ {[%clk 0:00:17.3]} 23. Kd1 {[%clk 0:01:03.2]} 1-0

[Event "*** Titled Tuesday Blitz"]
[Site "Chess.com"]
[Date "2020.04.07"]
[Round "4"]
[White "2L8IWUN"]
[Black "GMBenjaminFinegold"]
[Result "0-1"]
[WhiteElo "2359"]
[BlackElo "2564"]
[TimeControl "180+1"]
[EndTime "13:39:23 PDT"]
[Termination "GMBenjaminFinegold won by resignation"]

1. d4 {[%clk 0:03:00.9]} 1... Nf6 {[%clk 0:02:57.9]} 2. Nf3 {[%clk 0:03:01.5]}
2... c5 {[%clk 0:02:56.8]} 3. e3 {[%clk 0:03:01.5]} 3... g6 {[%clk 0:02:56.7]}
4. b3 {[%clk 0:02:57.5]} 4... Bg7 {[%clk 0:02:56.6]} 5. Bb2 {[%clk 0:02:58.1]}
5... O-O {[%clk 0:02:56.2]} 6. dxc5 {[%clk 0:02:55.6]} 6... Na6 {[%clk
0:02:53.3]} 7. Nbd2 {[%clk 0:02:53.4]} 7... Nxc5 {[%clk 0:02:52.8]} 8. Be2
{[%clk 0:02:54]} 8... b6 {[%clk 0:02:52.6]} 9. O-O {[%clk 0:02:54.3]} 9... Bb7
{[%clk 0:02:52.5]} 10. c4 {[%clk 0:02:54.9]} 10... a6 {[%clk 0:02:50.5]} 11. h3
{[%clk 0:02:52]} 11... d6 {[%clk 0:02:50.8]} 12. Rc1 {[%clk 0:02:48.5]} 12...
Rc8 {[%clk 0:02:44.3]} 13. b4 {[%clk 0:02:47.1]} 13... Ne6 {[%clk 0:02:42.7]}
14. Qb3 {[%clk 0:02:45.4]} 14... Rc7 {[%clk 0:02:37.3]} 15. Nd4 {[%clk
0:02:39.8]} 15... Ng5 {[%clk 0:02:32.9]} 16. N4f3 {[%clk 0:02:27.1]} 16... Ne6
{[%clk 0:02:31.5]} 17. Nd4 {[%clk 0:02:26.8]} 17... Ng5 {[%clk 0:02:31.6]} 18.
N4f3 {[%clk 0:02:23]} 18... h6 {[%clk 0:02:26.8]} 19. Nxg5 {[%clk 0:02:19.8]}
19... hxg5 {[%clk 0:02:27.7]} 20. Bf3 {[%clk 0:02:20.1]} 20... Qa8 {[%clk
0:02:24]} 21. Bd4 {[%clk 0:02:15.3]} 21... b5 {[%clk 0:02:12]} 22. Bxb7 {[%clk
0:02:01.9]} 22... Qxb7 {[%clk 0:02:10.1]} 23. c5 {[%clk 0:02:02.8]} 23... Rfc8
{[%clk 0:02:02.2]} 24. Qb2 {[%clk 0:01:58.7]} 24... e5 {[%clk 0:01:50.3]} 25.
Bc3 {[%clk 0:01:58.8]} 25... Nd5 {[%clk 0:01:49]} 26. Ne4 {[%clk 0:01:50.9]}
26... Nxc3 {[%clk 0:01:37.6]} 27. Nxd6 {[%clk 0:01:50.9]} 27... Na4 {[%clk
0:01:34]} 28. Qb3 {[%clk 0:01:40.3]} 28... Qc6 {[%clk 0:01:31.7]} 29. Nxc8
{[%clk 0:01:39.7]} 29... Rxc8 {[%clk 0:01:32.6]} 30. Rfd1 {[%clk 0:01:39.6]}
30... e4 {[%clk 0:01:30.2]} 31. Rd6 {[%clk 0:01:28.9]} 31... Qxd6 {[%clk
0:01:29.6]} 32. cxd6 {[%clk 0:01:29.8]} 32... Rxc1+ {[%clk 0:01:29.4]} 33. Kh2
{[%clk 0:01:30.4]} 33... Be5+ {[%clk 0:01:29.6]} 34. g3 {[%clk 0:01:30.3]} 34...
Bxd6 {[%clk 0:01:19.5]} 35. Qd5 {[%clk 0:01:26.4]} 35... Bxb4 {[%clk 0:01:15.6]}
36. Qxe4 {[%clk 0:01:25.2]} 36... Bf8 {[%clk 0:01:11.7]} 37. Qe5 {[%clk
0:01:16.9]} 37... Rc2 {[%clk 0:01:08.3]} 38. Kg2 {[%clk 0:01:13.6]} 38... Rxa2
{[%clk 0:01:07.9]} 39. Qxg5 {[%clk 0:01:13.2]} 39... b4 {[%clk 0:01:07.7]} 40.
h4 {[%clk 0:01:11.4]} 40... b3 {[%clk 0:01:06.3]} 41. h5 {[%clk 0:01:12]} 41...
b2 {[%clk 0:01:03.2]} 42. hxg6 {[%clk 0:01:12.2]} 42... b1=Q {[%clk 0:01:02.3]}
43. gxf7+ {[%clk 0:01:10.3]} 43... Kxf7 {[%clk 0:01:03.2]} 44. Qd5+ {[%clk
0:01:08.4]} 44... Ke8 {[%clk 0:01:02.1]} 45. Qc6+ {[%clk 0:01:04.6]} 45... Kd8
{[%clk 0:01:00.4]} 46. Qa8+ {[%clk 0:01:01.7]} 46... Kc7 {[%clk 0:00:59]} 47.
Qxf8 {[%clk 0:00:58.7]} 47... Qb7+ {[%clk 0:00:57.5]} 0-1

[Event "*** Titled Tuesday Blitz"]
[Site "Chess.com"]
[Date "2020.04.07"]
[Round "4"]
[White "Alexander_Donchenko"]
[Black "chessasuke"]
[Result "1-0"]
[WhiteElo "2856"]
[BlackElo "2585"]
[TimeControl "180+1"]
[EndTime "13:39:25 PDT"]
[Termination "Alexander_Donchenko won by checkmate"]

1. Nf3 {[%clk 0:03:00.9]} 1... c5 {[%clk 0:02:56]} 2. c4 {[%clk 0:03:01.4]} 2...
Nc6 {[%clk 0:02:56]} 3. Nc3 {[%clk 0:03:02]} 3... g6 {[%clk 0:02:56.7]} 4. e3
{[%clk 0:03:02.5]} 4... Nf6 {[%clk 0:02:50.1]} 5. d4 {[%clk 0:03:03]} 5... cxd4
{[%clk 0:02:50.9]} 6. exd4 {[%clk 0:03:03.6]} 6... d5 {[%clk 0:02:51.6]} 7. cxd5
{[%clk 0:03:04.5]} 7... Nxd5 {[%clk 0:02:52]} 8. Qb3 {[%clk 0:03:05.1]} 8...
Nxc3 {[%clk 0:02:52.6]} 9. Bc4 {[%clk 0:03:04.9]} 9... Nd5 {[%clk 0:02:53.1]}
10. Bxd5 {[%clk 0:03:05.4]} 10... e6 {[%clk 0:02:53.8]} 11. Bxc6+ {[%clk
0:03:06]} 11... bxc6 {[%clk 0:02:54.7]} 12. O-O {[%clk 0:03:06.4]} 12... Qd5
{[%clk 0:02:55.3]} 13. Qe3 {[%clk 0:03:06.3]} 13... f6 {[%clk 0:02:54.5]} 14.
Bd2 {[%clk 0:03:05.3]} 14... Be7 {[%clk 0:02:52.8]} 15. Rfe1 {[%clk 0:03:03.2]}
15... Kf7 {[%clk 0:02:52.6]} 16. Qf4 {[%clk 0:03:02.6]} 16... Re8 {[%clk
0:02:26.4]} 17. Re5 {[%clk 0:02:56.6]} 17... Qd6 {[%clk 0:02:23.2]} 18. Ng5+
{[%clk 0:01:50.7]} 18... Kg8 {[%clk 0:02:20.7]} 19. Nxh7 {[%clk 0:01:50.8]}
19... fxe5 {[%clk 0:01:31.9]} 20. Qh6 {[%clk 0:01:50.7]} 20... Kf7 {[%clk
0:01:28.2]} 21. Ng5+ {[%clk 0:01:47.1]} 21... Bxg5 {[%clk 0:01:26.6]} 22. Qh7+
{[%clk 0:01:47.4]} 22... Kf6 {[%clk 0:01:21.5]} 23. dxe5+ {[%clk 0:01:47.6]}
23... Kxe5 {[%clk 0:01:07.1]} 24. Bc3+ {[%clk 0:01:12.3]} 24... Kd5 {[%clk
0:00:51.2]} 25. Rd1+ {[%clk 0:01:10.8]} 25... Kc5 {[%clk 0:00:51]} 26. b4+
{[%clk 0:01:01.4]} 26... Kc4 {[%clk 0:00:47.6]} 27. Rxd6 {[%clk 0:01:02.3]}
27... Kxc3 {[%clk 0:00:47.9]} 28. Qxg6 {[%clk 0:00:46.7]} 28... Rd8 {[%clk
0:00:46.1]} 29. Rxc6+ {[%clk 0:00:44.9]} 29... Kxb4 {[%clk 0:00:45.8]} 30. Qb1+
{[%clk 0:00:38.6]} 30... Ka5 {[%clk 0:00:44.9]} 31. Rc5+ {[%clk 0:00:38.2]}
31... Ka4 {[%clk 0:00:44]} 32. Qb3# {[%clk 0:00:38]} 1-0

[Event "*** Titled Tuesday Blitz"]
[Site "Chess.com"]
[Date "2020.04.07"]
[Round "4"]
[White "biostatistician"]
[Black "Misi_95"]
[Result "0-1"]
[WhiteElo "2512"]
[BlackElo "2707"]
[TimeControl "180+1"]
[EndTime "13:39:29 PDT"]
[Termination "Misi_95 won by resignation"]

1. d4 {[%clk 0:03:00.7]} 1... Nf6 {[%clk 0:02:59.5]} 2. Nf3 {[%clk 0:03:01.6]}
2... e6 {[%clk 0:02:59.4]} 3. c4 {[%clk 0:03:02]} 3... c5 {[%clk 0:02:58.2]} 4.
e3 {[%clk 0:03:01.9]} 4... d5 {[%clk 0:02:57.1]} 5. Nc3 {[%clk 0:03:01.7]} 5...
Nc6 {[%clk 0:02:54.6]} 6. a3 {[%clk 0:03:02]} 6... cxd4 {[%clk 0:02:51.6]} 7.
exd4 {[%clk 0:03:02.1]} 7... Be7 {[%clk 0:02:52.3]} 8. cxd5 {[%clk 0:02:59.6]}
8... Nxd5 {[%clk 0:02:49.4]} 9. Bc4 {[%clk 0:03:00]} 9... Nxc3 {[%clk
0:02:46.9]} 10. bxc3 {[%clk 0:02:59.9]} 10... O-O {[%clk 0:02:47.5]} 11. O-O
{[%clk 0:03:00.2]} 11... b6 {[%clk 0:02:44.6]} 12. Qe2 {[%clk 0:02:55.7]} 12...
Bb7 {[%clk 0:02:43.1]} 13. Bd3 {[%clk 0:02:55.8]} 13... Na5 {[%clk 0:02:31.8]}
14. Bf4 {[%clk 0:02:54]} 14... Rc8 {[%clk 0:02:29.9]} 15. Qe3 {[%clk 0:02:38.7]}
15... Qd5 {[%clk 0:02:11.5]} 16. c4 {[%clk 0:02:25.8]} 16... Nxc4 {[%clk
0:02:10.3]} 17. Qe2 {[%clk 0:02:15.9]} 17... Na5 {[%clk 0:01:52.4]} 18. Rfe1
{[%clk 0:01:52.9]} 18... Nb3 {[%clk 0:01:48.6]} 19. Rad1 {[%clk 0:01:50.6]}
19... Nxd4 {[%clk 0:01:48.5]} 20. Bxh7+ {[%clk 0:01:47]} 20... Kxh7 {[%clk
0:01:48.4]} 21. Rxd4 {[%clk 0:01:47.9]} 21... Qf5 {[%clk 0:01:40.7]} 22. Ne5
{[%clk 0:01:04.5]} 22... Rc2 {[%clk 0:01:31.9]} 23. Rd2 {[%clk 0:00:34.8]} 23...
Rxd2 {[%clk 0:01:26.5]} 24. Bxd2 {[%clk 0:00:35.7]} 24... Rd8 {[%clk 0:01:17.2]}
25. Bb4 {[%clk 0:00:26.9]} 25... Bf6 {[%clk 0:01:09.5]} 26. Nxf7 {[%clk
0:00:24.7]} 26... Qg6 {[%clk 0:01:08.1]} 0-1